Cogmind - Beta 15 @@@ ROGUE MODE // 2025.06.18 @ 20:44:33 Player: Struisvogel Result: Destroyed by G-34 Mercenary with Small Laser Performance ------------- Evolutions (0) 0 Regions Visited (2) 400 Robots Destroyed (13) 65 Value Destroyed (268) 268 Prototype IDs (0) 0 Alien Tech Used (0) 0 Bonus (0) 0 TOTAL SCORE: 733 Bonus ------- None Cogmind --------- Core Integrity 0/250 Matter 270/300 Energy 249/250 System Corruption 0% Temperature Warm (115) Movement Flying (117) Ox1 Location -10/Mines Parts ------- > --- POWER (1) -------- Ion Engine > --- PROPULSION (2) --- Flight Unit Flight Unit > --- UTILITY (2) ------ Small Storage Unit > --- WEAPON (2) ------- Particle Gun > --- INVENTORY (8) ---- Ion Engine Ion Engine Light Ion Engine Flight Unit Signal Interpreter Seismic Detector Light Assault Rifle Peak State ------------ > --- POWER ------------ Light Ion Engine > --- PROPULSION ------- Light Treads Light Treads > --- UTILITY ---------- Small Storage Unit Seismic Detector > --- WEAPON ----------- Medium Laser Light Assault Rifle > --- INVENTORY -------- Ion Engine Ion Engine Flight Unit Flight Unit Flight Unit Signal Interpreter Particle Gun [Rating: 7] Favorites ----------- Power Ion Engine Engine Ion Engine Propulsion Light Treads Treads Light Treads Flight Unit Flight Unit Utility Small Storage Unit Device Seismic Detector Storage Small Storage Unit Protection Core Shielding Weapon Medium Laser Energy Gun Medium Laser Ballistic Gun Light Assault Rifle Build | -11 -10 -10 ------- Run | Yrd Mat Min Slots Evolved . | . . . Power . | . . . Propulsion . | . . . Utility . | . . . Weapon . | . . . Parts Attached 14 | 5 6 3 Power 3 | 1 2 . Engine 3 | 1 2 . Core . | . . . Reactor . | . . . Propulsion 4 | 2 . 2 Treads 2 | 2 . . Leg . | . . . Wheel . | . . . Hover . | . . . Flight 2 | . . 2 Utility 3 | 1 2 . Device 1 | . 1 . Storage 1 | 1 . . Processor . | . . . Hackware . | . . . Protection 1 | . 1 . Artifact . | . . . Weapon 4 | 1 2 1 Energy Gun 3 | 1 1 1 Energy Cannon . | . . . Ballistic Gun 1 | . 1 . Ballistic Cannon . | . . . Launcher . | . . . Special Weapon . | . . . Impact Weapon . | . . . Slashing Weapon . | . . . Piercing Weapon . | . . . Special Melee Weapon . | . . . Unidentified Prototypes . | . . . Parts Lost 3 | . 1 2 Power . | . . . Propulsion 1 | . . 1 Utility . | . . . Weapon 2 | . 1 1 Highest Loss Streak 2 | . 1 2 To Critical Strikes . | . . . Average Backups 6 | 2 6 7 Power 1 | . 1 3 Propulsion 2 | 1 2 2 Utility . | . . 1 Weapon 1 | . 1 . Tool/Special . | . . . Unused Backups 7 | . 4 3 Power 1 | . . 1 Propulsion 5 | . 4 1 Utility 1 | . . 1 Weapon . | . . . Tool/Special . | . . . Average Slot Usage (%) 83 | . 84 78 Engine 14 | . 14 14 Treads 23 | . 28 11 Flight 2 | . . 8 Device 7 | . 6 9 Storage 14 | . 14 14 Protection 4 | . 6 . Energy Gun 12 | . 14 9 Ballistic Gun 3 | . . 9 Peak Build Rating 7 | 5 7 7 Average Rating 5 | 3 5 6 On Entrance 4 | . 5 7 Naked Turns . | . . . Heaviest Build 15 | 12 14 15 Greatest Support 40 | 40 40 40 Greatest Overweight (x) 1 | . . 1 Average Overweight (x) . | . . . Largest Inventory Capacity 8 | 8 8 8 Average Capacity 7 | 6 8 8 Most Carried 8 | 5 8 8 Average Carried 6 | 2 6 7 Final Capacity 8 | 8 8 8 Final Carried 8 | 5 8 7 Class Distribution -------------------- 100% | Mutant Dominant Class ---------------- Mutant | -10/Materials Mutant | -10/Mines Resources | -11 -10 -10 ----------- Run | Yrd Mat Min Matter Collected 330 | 185 128 17 Remotely . | . . . Salvage Created 385 | . 305 80 Parts 29 | . 25 4 Haulers Intercepted . | . . . Recyclers Shooed . | . . . Parts Field Recycled . | . . . Retrieved Matter . | . . . Parts Self-Destructed . | . . . Prevented . | . . . Kills | -11 -10 -10 ------- Run | Yrd Mat Min Combat Hostiles Destroyed 10 | . 8 2 Guns 9 | . 7 2 AOE 1 | . 1 . Classes Destroyed 5 | . 5 . Worker 1 | . 1 . Builder 1 | . 1 . Watcher 1 | . 1 . Swarmer 5 | . 5 . Grunt 5 | . 3 2 Best Kill Streak 3 | . 3 2 Combat Bots Only 2 | . 2 2 Max Kills in Single Turn 1 | . 1 1 Gunslinging . | . . . Exploded 1 | . 1 . Melee . | . . . Uniques/NPCs Destroyed . | . . . Combat | -11 -10 -10 -------- Run | Yrd Mat Min Hostile Shots Fired 87 | . 50 37 Missed 21 | . 12 9 Hits 66 | . 38 28 Projectile 66 | . 38 28 Critical Strikes 3 | . 2 1 Damage Taken 851 | . 485 366 Core 258 | . 122 136 Absorbed by Shields . | . . . Redirected to Shielding 15 | . 15 . Core Remaining (%) 100 | 100 . . Volleys Fired 50 | . 38 12 Largest 2 | . 2 2 Hottest 85 | . 70 85 Shots Fired 58 | . 41 17 Gun 58 | . 41 17 Cannon . | . . . Launcher . | . . . Special . | . . . Kinetic 12 | . 3 9 Thermal 32 | . 24 8 Explosive . | . . . Electromagnetic 14 | . 14 . Robot Hit Streak 6 | . 6 3 Robot Miss Streak 4 | . 4 2 Penetration Max . | . . . Secondary Targets 1 | . . 1 Max Gunslinging Chain 1 | . . 1 Shots Hit Robots 36 | . 26 10 Core Hits 21 | . 16 5 Critical Kills . | . . . Critical Parts Destroyed . | . . . Critical Strikes 2 | . 2 . Burn 2 | . 2 . Melee Attacks . | . . . Impact . | . . . Slashing . | . . . Piercing . | . . . Sneak Attacks . | . . . Combat Hostiles . | . . . Follow-up Attacks . | . . . Damage Inflicted 484 | . 361 123 Guns 438 | . 315 123 Cannons . | . . . Explosions 46 | . 46 . Melee . | . . . Ramming . | . . . Kinetic 63 | . 16 47 Thermal 299 | . 223 76 Explosive . | . . . Electromagnetic 122 | . 122 . Impact . | . . . Slashing . | . . . Piercing . | . . . Highest Corruption . | . . . Average Corruption . | . . . Corruption Purged . | . . . Corruption Blocked . | . . . Overload Shots . | . . . Overflow Damage 5 | . 5 . Projectiles . | . . . Explosions 5 | . 5 . Melee . | . . . Knockbacks . | . . . Impact . | . . . Kinetic . | . . . Secondary . | . . . Self-Inflicted Damage 37 | . 37 . Shots 1 | . 1 . Rammed . | . . . Targets Rammed . | . . . Kicked . | . . . Crushed . | . . . Highest Temperature 184 | . 176 184 Average Temperature 60 | . 51 81 Received Heat Transfer 447 | . 219 228 Siege Activations . | . . . Martial Activations . | . . . Shielding Activations . | . . . Robots Disrupted . | . . . Combat Hostiles . | . . . Robots Corrupted . | . . . Combat Hostiles . | . . . Parts Fried . | . . . Impact Corruptions . | . . . Robots Melted . | . . . Combat Hostiles . | . . . Parts Melted 1 | . 1 . Heat Transferred 951 | . 766 185 Parts Sabotaged . | . . . Parts Stolen . | . . . Parts Stripped . | . . . Power Chain Reactions 1 | . 1 . Alert | -11 -10 -10 ------- Run | Yrd Mat Min Maximum Alert Level . | . . . Low Security (%) 100 | 100 100 100 Level 1 . | . . . Level 2 . | . . . Level 3 . | . . . Level 4 . | . . . Level 5 . | . . . High Security . | . . . Max Security . | . . . Peak Influence 84 | . 84 50 Initial 10 | . . 10 Average 27 | . 36 14 Influence Increases 331 | . 251 80 Destroy 0b10 Robot/C 200 | . 160 40 Destroy 0b10 Robot/NC 15 | . 15 . Destroy Leader 52 | . 42 10 Destroy Structure 4 | . 4 . Lose Combat Pursuer 60 | . 30 30 Influence Decreases 311 | . 222 89 Entered New Map 19 | . . 19 Time Decay 282 | . 212 70 Lost Part 10 | . 10 . Squads Dispatched 1 | . 1 . Investigation . | . . . Extermination . | . . . Reinforcement 1 | . 1 . Assault . | . . . Garrison . | . . . Intercept . | . . . Searches Triggered . | . . . Construction Impeded . | . . . Haulers Reinforced . | . . . Active Scanning Responses . | . . . Cargo Convoy Interrupts . | . . . Stealth | -11 -10 -10 --------- Run | Yrd Mat Min Distress Signals 3 | . 3 . Communications Jammed . | . . . Distress Signals . | . . . Times Spotted 25 | . 17 8 Peak Tracking Total 4 | . 3 4 Tactical Retreats 3 | . 2 1 Traps | -11 -10 -10 ------- Run | Yrd Mat Min Traps Triggered . | . . . Indirectly . | . . . Trap Hack Attempts . | . . . Triggered . | . . . Disarmed . | . . . Reprogrammed . | . . . Reused . | . . . Traps Extracted . | . . . Installed . | . . . Triggered . | . . . Machines | -11 -10 -10 ---------- Run | Yrd Mat Min Machines Disabled . | . . . Max in Single Turn . | . . . Machines Repaired . | . . . Machines Dismantled . | . . . Machines Sabotaged . | . . . Overloaded Fab Kills . | . . . Hacking | -11 -10 -10 --------- Run | Yrd Mat Min Machines Accessed . | . . . Terminals . | . . . Fabricators . | . . . Repair Stations . | . . . Recycling Units . | . . . Scanalyzers . | . . . Garrison Access . | . . . Total Hacks . | . . . Successful . | . . . Failed . | . . . Catastrophic . | . . . Database Lockouts . | . . . Manual . | . . . Terminals . | . . . Fabricators . | . . . Repair Stations . | . . . Recycling Units . | . . . Scanalyzers . | . . . Garrison Access . | . . . Terminal Hacks . | . . . Fabricator Hacks . | . . . Repair Station Hacks . | . . . Recycling Unit Hacks . | . . . Scanalyzer . | . . . Garrison Access Hacks . | . . . Unauthorized Hacks . | . . . Terminals . | . . . Fabricators . | . . . Repair Stations . | . . . Recycling Units . | . . . Scanalyzers . | . . . Garrison Access . | . . . Data Cores Recovered . | . . . Used . | . . . Hacking Detections . | . . . Full Trace Events . | . . . Feedback Events . | . . . Feedback Blocked . | . . . Robot Schematics Acquired . | . . . Robots Built . | . . . Authchips . | . . . Time . | . . . Total Robot Build Rating . | . . . Part Schematics Acquired . | . . . Parts Built . | . . . Authchips . | . . . Time . | . . . Total Part Build Rating . | . . . Parts Repaired . | . . . Time . | . . . Parts Recycled . | . . . Recycled Matter . | . . . Retrieved Matter . | . . . Retrieved Components . | . . . Parts Scanalyzed . | . . . Part Schematics Acquired . | . . . Parts Damaged . | . . . Bothacking | -11 -10 -10 ------------ Run | Yrd Mat Min Used RIF Installer . | . . . Robots Hacked . | . . . Non-combat . | . . . Combat . | . . . Robot Hacks Applied . | . . . Relay Couplers Released . | . . . Fabnet Peak Effective % . | . . . Robots Rewired . | . . . Allies Hacked . | . . . Hacks Repelled . | . . . Allies | -11 -10 -10 -------- Run | Yrd Mat Min Total Allies . | . . . Largest Group . | . . . Highest-Rated Group . | . . . Highest-Rated Ally . | . . . Total Orders . | . . . Ally Attacks . | . . . Total Damage . | . . . Kills . | . . . Allies Corrupted . | . . . Allies Melted . | . . . Intel | -11 -10 -10 ------- Run | Yrd Mat Min Active Infowar (turns) 379 | . 242 137 Seismic 379 | . 242 137 Robot Analysis Total . | . . . Derelict Logs Recovered . | . . . Drone Launches . | . . . Drone Recoveries . | . . . Exploration | -11 -10 -10 ------------- Run | Yrd Mat Min Turns Passed 809 | 76 543 190 Spaces Moved 430 | 43 278 109 Core 4 | 4 . . Treads 386 | 39 278 69 Legs . | . . . Wheels . | . . . Hover . | . . . Flight 40 | . . 40 Fastest Speed 50 | 50 160 117 Average Speed 154 | 149 160 144 Slowest Speed 160 | 160 160 160 Overloaded Moves . | . . . Propulsion Burnouts . | . . . Robots Hopped . | . . . Potential Cave-ins . | . . . Cave-ins Triggered . | . . . Exploration Rate (%) 25 | 5 50 20 Regions Visited 2 Branch Regions 1 Pre-discovered Areas . | . . . Known Exits Taken . | . . . Unknown Exits Taken 2 | 1 1 . Scrap Searched . | . . . Spaces Dug . | . . . Terrain Destroyed 3 | . 3 . Melee . | . . . Projectile . | . . . AOE 3 | . 3 . Terrain Rammed . | . . . Walls Destroyed . | . . . Machines Disabled . | . . . Actions | -11 -10 -10 --------- Run | Yrd Mat Min Total 521 | 52 340 129 Wait 5 | . 5 . Move 428 | 42 277 109 Hop . | . . . Pick Up 13 | 5 8 . Fast Attach 7 | 5 2 . Attach 6 | . 2 4 Detach 4 | . 1 3 Swap 2 | . 2 . Drop 6 | . 5 1 Fire 50 | . 38 12 Melee . | . . . Ram . | . . . Kick . | . . . Crush . | . . . Escape Stasis . | . . . Rewire . | . . . Trap . | . . . Miscellaneous . | . . . Route ------- -11/Scrapyard -10/Materials (discovered 2 exits: [*Min x2]) -10/Mines History --------- Turn | Location | Event 3 | -11/Scrapyard | Discovered new exit (range 15) 77 | -11/Scrapyard | Entered Materials 154 | -10/Materials | Discovered new exit (range 6) 303 | -10/Materials | Build established: Mutant 570 | -10/Materials | Discovered new exit (range 8) 620 | -10/Materials | Entered Mines 646 | -10/Mines | Core integrity fell below 50% 805 | -10/Mines | Core integrity fell below 20% 810 | -10/Mines | Destroyed by G-34 Mercenary with Small Laser Last Messages --------------- 00516_ Dropped Flight Unit. 00516_ Acquired Flight Unit. 00531_ ALERT: Hostiles spotted, dispatching reinforcements to Terminal M003. 00570_ EXIT=FOUND 00594_ G-34 Mercenary destroyed. 00602_ Acquired 21 matter. 00604_ Acquired 1 matter. LOCATION=UNKNOWN GOAL=ESCAPE Something is scanning the area. 00639_ Critical hit (Burn: +37). 00643_ Med. Laser destroyed. 00643_ Lgt. Treads destroyed. 00655_ G-47 Trooper destroyed. 00655_ Switching to secondary target: G-34 Mercenary. 00657_ G-34 Mercenary destroyed. 00663_ Acquired 17 matter. 00755_ Dropped Lgt. Treads. Map ----- +----------------------------------------------------+ | | | | | | | | | | | | | | | | | | | ??????????????????????????????????????????????? | | ???????????????????????????????#??????????????? | | ????????????????####????????? ??????????????? | | ???????????????## #????????"" ??????????????? | | ???????????????# ????????"" ??????????????? | | ???????????????? ????????"" ??????????????? | | ????????????????? #??????? ??????????????? | | ??????????????????# ####???# #??????????????? | | ??????????###??????# ##??# #??????????????? | | ?????????## #??????# #??# #??????????????? | | ?????????# ?????# #??# #??????????????? | | ?????????# ??????# #???#=#####??????????? | | ?????????# ?????# ###### #??????????? | | ???? #### #????# ## ##### #########??? | | ??? #???# #??# #??? | | ??? ####g% ##?######### #??? | | ?????????# g @ ##????????# #??? | | ??????????#### ## ##???????# #??? | | ?????????????## ### ##??????# #??? | | ??????????????# """ #?# #??????# #??? | | ??????????????# """ #?## #??????# #??? | | ????????????? """ #??##g ##?###### #??? | | ????????????## #??# g###?## #??? | | ?????????????# ### #?## #??## ######??? | | ?????????????## #??## ##?# #### ##???????? | | ??????????????###????## #??# ##????????? | | ??????????????????????? #??# """ ##????????? | | ??????????????????????? #??## """ ##???????? | | ??????????????????????? #???# """ #???????? | | ??????????????????????? #???# ##??????? | | ??????????????????????? #???##### #??????? | | ??????????????????????? ????????## #??????? | | ?????????????????????????????????### ##??????? | | ???????????????????????????????????####???????? | | ??????????????????????????????????????????????? | | ??????????????????????????????????????????????? | | ??????????????????????????????????????????????? | | ??????????????????????????????????????????????? | | ??????????????????????????????????????????????? | | ??????????????????????????????????????????????? | | ??????????????????????????????????????????????? | +----------------------------------------------------+ Best States ------------- Heat Dissipation 25 Energy Generation 10 Energy Capacity 250 Matter Stores 300 Matter Capacity 300 Sight Range 16 Terrain Scan Density 10 Core Shielding 20 Evasion (%) 40 Recoil Reduction 2 Item Schematics ----------------- None Robot Schematics ------------------ None Fabricated ------------ Nothing Repaired ---------- Nothing Alien Tech Used ----------------- None Achievements -------------- None Challenges ------------ None Game ------ Seed SpreadGyrokineticRipteeth Manual? 0 Play Time 00:07:05 Cumulative 8.8 hours Start 2025.06.18 @ 20:37:01 End 2025.06.18 @ 20:44:33 Sessions 2 Manual Loads 0 Difficulty Rogue Special Mode None Game No. 26 Rogue 26 Adventurer 0 Explorer 0 Win Type - Total 0 Types 0/0/0/0/0/0/0/0/0/0 Lore% 4 Gallery% 13 Achievement% 16 Wizard Run 0 Options --------- Layout 1 ASCII 0 Keyboard 0 Movement Mouse Keybinds 0 Fullscreen 2 Font 24/Smallcaps Map View 50x35 Zoom Use 0% Tactical HUD 1 Map Filters NONE Filters NONE Steam 1 RUN: 43410c4f-6c86-44a0-84ef-91046e9554a0